fUST/lending_fUST_20250822
["ID","MTS","AMOUNT","RATE_DAILY","PERIOD"]
[380570078,1755809449531,-615.31,0.00024657,3]
[380570080,1755809449541,-1411.74,0.00024657,3]
[380570083,1755809449551,-786.74,0.00024657,3]
[380570085,1755809449561,-151.0,0.00024657,7]
[380570087,1755809449571,-151.0,0.00024657,7]
[380570088,1755809449580,-151.0,0.00024657,7]
[380570090,1755809449590,-151.0,0.00024657,7]
[380570092,1755809449600,-151.0,0.00024657,7]
[380570094,1755809449609,-151.0,0.00024657,7]
[380570096,1755809449619,-151.0,0.00024657,7]
[380570098,1755809449628,-151.0,0.00024657,7]
[380570100,1755809449638,-996.89,0.00024657,3]
[380570102,1755809449648,-151.0,0.00024657,7]
[380570104,1755809449657,-574.81,0.00024657,3]
[380570106,1755809449667,-2527.71,0.00024657,3]
[380570108,1755809449676,-480.0,0.00024657,3]
[380570110,1755809449686,-151.0,0.00024657,7]
[380570112,1755809449695,-151.0,0.00024657,7]
[380570114,1755809449705,-151.0,0.00024657,7]
[380570116,1755809449715,-480.0,0.00024657,3]
[380570118,1755809449725,-480.0,0.00024657,3]
[380570120,1755809449735,-741.71,0.00024657,3]
[380570122,1755809449744,-151.0,0.00024657,7]
[380570124,1755809449754,-1587.91,0.00024657,3]
[380570126,1755809449764,-151.0,0.00024657,7]
[380570128,1755809449774,-544.7,0.00024657,3]
[380570130,1755809449783,-151.0,0.00024657,7]
[380570132,1755809449793,-151.0,0.00024657,7]
[380570134,1755809449804,-1257.84,0.00024657,3]
[380570136,1755809449813,-4128.72,0.00024657,3]
[380570138,1755809449823,-151.0,0.00024657,7]
[380570140,1755809449832,-263.035726,0.00024657,7]
[380570142,1755809449842,-263.035726,0.00024657,7]
[380570144,1755809449852,-151.0,0.00024657,7]
[380570146,1755809449862,-263.035726,0.00024657,7]
[380570148,1755809449872,-1686.08,0.00024657,3]
[380570150,1755809449881,-151.0,0.00024657,7]
[380570152,1755809449891,-263.035726,0.00024657,7]
[380570154,1755809449900,-769.53,0.00024657,3]
[380570156,1755809449912,-585.17,0.00024657,3]
[380570158,1755809449922,-151.0,0.00024657,7]
[380570160,1755809449932,-910.29,0.00024657,3]
[380570162,1755809449941,-151.0,0.00024657,7]
[380570164,1755809449951,-3794.13,0.00024657,3]
[380570166,1755809449961,-480.0,0.00024657,3]
[380570168,1755809449971,-229.09144397,0.00024657,3]
[380570170,1755809449983,-1160.77,0.00024657,3]
[380570172,1755809449992,-2439.77,0.00024657,3]
[380570174,1755809450003,-151.854492,0.00024657,7]
[380570188,1755809450131,-151.0,0.00024657,7]
[380570190,1755809450142,-151.0,0.00024657,7]
[380570192,1755809450151,-480.0,0.00024657,3]
[380570194,1755809450161,-151.0,0.00024657,7]
[380570196,1755809450170,-153.413015,0.00024657,7]
[380570198,1755809450180,-566.38,0.00024657,3]
[380570200,1755809450189,-1315.98,0.00024657,3]
[380570202,1755809450198,-974.69,0.00024657,3]
[380570204,1755809450207,-414.668051,0.00024657,7]
[380570205,1755809450217,-414.668051,0.00024657,7]
[380570208,1755809450228,-485.99,0.00024657,3]
[380570209,1755809450238,-414.668051,0.00024657,7]
[380570211,1755809450247,-414.668051,0.00024657,7]
[380570213,1755809450257,-280.937925,0.00024657,7]
[380570215,1755809450266,-280.937925,0.00024657,7]
[380570217,1755809450275,-150.0,0.00024658,2]
[380570219,1755809450284,-151.0,0.00024658,2]
[380570221,1755809450294,-151.0,0.00024658,2]
[380570223,1755809450303,-151.0,0.00024658,2]
[380570225,1755809450312,-151.0,0.00024658,2]
[380570226,1755809450322,-151.0,0.00024658,2]
[380570228,1755809450332,-151.0,0.00024658,2]
[380570230,1755809450342,-151.0,0.00024658,2]
[380570232,1755809450351,-151.0,0.00024658,2]
[380570234,1755809450361,-151.0,0.00024658,2]
[380570236,1755809450371,-151.0,0.00024658,2]
[380570238,1755809450380,-151.0,0.00024658,2]
[380570240,1755809450390,-151.0,0.00024658,2]
[380570242,1755809450399,-756.0,0.00024658,2]
[380570244,1755809450410,-500.0,0.00024658,2]
[380570246,1755809450419,-151.0,0.00024658,2]
[380570248,1755809450428,-500.0,0.00024658,2]
[380570250,1755809450437,-200.2887846,0.00024658,2]
[380570252,1755809450446,-264.62832098,0.00024658,2]
[380570254,1755809450456,-176.03762668,0.00024658,2]
[380570256,1755809450466,-151.0,0.00024658,2]
[380570258,1755809450476,-151.0,0.00024658,2]
[380570260,1755809450485,-151.0,0.00024658,2]
[380570262,1755809450494,-500.0,0.00024658,2]
[380570264,1755809450504,-500.0,0.00024658,2]
[380570266,1755809450513,-500.0,0.00024658,2]
[380570268,1755809450522,-151.0,0.00024658,2]
[380570270,1755809450531,-760.0,0.00024688,2]
[380570271,1755809450540,-42250.72,0.000247,2]
[380570273,1755809450550,-151.0,0.000247,7]
[380570275,1755809450559,-168.347313,0.000247,7]
[380570277,1755809450568,-168.347313,0.000247,7]
[380570279,1755809450577,-258.097144,0.000247,7]
[380570281,1755809450586,-168.347313,0.000247,7]
[380570283,1755809450596,-151.0,0.000247,7]
[380570285,1755809450606,-168.347313,0.000247,7]
[380570287,1755809450615,-151.0,0.000247,7]
[380570289,1755809450624,-151.0,0.000247,7]
[380570291,1755809450634,-151.0,0.000247,7]
[380570293,1755809450643,-151.0,0.000247,7]
[380570295,1755809450652,-151.0,0.000247,7]
[380570297,1755809450661,-151.0,0.000247,7]
[380570299,1755809450670,-202.0,0.000247,11]
[380570301,1755809450679,-3000.0,0.00024712,2]
[380570302,1755809450688,-581.1080994,0.00024795,2]
[380570304,1755809450699,-1162.2161988,0.00024795,2]
[380570306,1755809450708,-581.1080994,0.00024795,2]
[380570308,1755809450718,-407.73,0.000248,7]
[380570310,1755809450728,-1000.0,0.000248,2]
[380570312,1755809450737,-7669.51235928,0.000248,2]
[380570314,1755809450747,-188.9947005,0.00024806,2]
[380570316,1755809450756,-800.0,0.00024818,2]
[380570318,1755809450765,-168.0,0.00024822,2]
[380570320,1755809450774,-168.0,0.00024864,2]
[380570322,1755809450783,-150.0,0.00024873,2]
[380570324,1755809450792,-150.0,0.00024873,2]
[380570326,1755809450802,-157.30603126,0.00024873,2]
[380570328,1755809450811,-318.4688872,0.00024873,2]
[380570330,1755809450820,-12500.0,0.00024873,7]
[380570332,1755809450829,-151.0,0.00024873,7]
[380570334,1755809450838,-155.0,0.000249,3]
[380570335,1755809450847,-326.0,0.000249,3]
[380570337,1755809450857,-326.0,0.000249,3]
[380570339,1755809450866,-326.0,0.000249,3]
[380570341,1755809450875,-151.0,0.000249,7]
[380570343,1755809450884,-151.0,0.000249,7]
[380570345,1755809450894,-151.0,0.000249,7]
[380570347,1755809450903,-151.0,0.000249,7]
[380570349,1755809450916,-151.0,0.000249,7]
[380570351,1755809450925,-151.0,0.000249,7]
[380570353,1755809450936,-151.0,0.000249,7]
[380570355,1755809450945,-151.0,0.000249,7]
[380570357,1755809450957,-151.0,0.000249,7]
[380570359,1755809450966,-63.78345494,0.000249,7]
[380570369,1755809451057,-87.21654506,0.000249,7]
[380570371,1755809451067,-151.0,0.000249,7]
[380570373,1755809451077,-151.0,0.000249,7]
[380570375,1755809451086,-151.0,0.000249,7]
[380570377,1755809451095,-151.0,0.000249,7]
[380570379,1755809451104,-217.997536,0.000249,7]
[380570381,1755809451114,-160.226413,0.000249,7]
[380570383,1755809451123,-151.0,0.000249,7]
[380570385,1755809451132,-151.0,0.000249,7]
[380570387,1755809451142,-263.035726,0.000249,7]
[380570389,1755809451151,-263.035726,0.000249,7]
[380570391,1755809451161,-151.0,0.000249,7]
[380570393,1755809451170,-263.035726,0.000249,7]
[380570395,1755809451180,-151.0,0.000249,7]
[380570397,1755809451189,-263.035726,0.000249,7]
[380570399,1755809451199,-151.0,0.000249,7]
[380570401,1755809451208,-281355.04241158,0.000249,2]
[380570403,1755809451224,-10784.41337687,0.000249,2]
[380570459,1755809451783,5000.0,0.00019111,2]
[380570478,1755809451959,-480.0,0.00019178,2]
[380570480,1755809451968,-480.0,0.00019178,2]
[380570482,1755809451977,-480.0,0.00019178,2]
[380570483,1755809451987,-480.0,0.00019452,2]
[380570485,1755809451996,-391.0,0.00019452,2]
[380570487,1755809452005,-480.0,0.00019726,2]
[380570489,1755809452015,-480.0,0.00019899,2]
[380570491,1755809452023,-480.0,0.0002,2]
[380570493,1755809452032,-480.0,0.00020173,2]
[380570495,1755809452042,-480.0,0.00020273,2]
[380570497,1755809452051,-199.0,0.00020439,10]
[380570499,1755809452061,-480.0,0.00020547,2]
[380570501,1755809452070,-480.0,0.00020821,2]
[380570503,1755809452079,-480.0,0.00021095,2]
[380570505,1755809452088,-480.0,0.00021369,2]
[380570507,1755809452097,-480.0,0.00021643,2]
[380570509,1755809452106,-480.0,0.00021917,2]
[380570510,1755809452115,-480.0,0.00022191,3]
[380570512,1755809452124,-230.512,0.00022327,2]
[380570514,1755809452134,-160.672,0.00022327,2]
[380570516,1755809452143,-480.0,0.00022465,3]
[380570518,1755809452152,-480.0,0.00022739,3]
[380570520,1755809452161,-480.0,0.00023013,3]
[380570522,1755809452171,-480.0,0.00023287,3]
[380570524,1755809452180,-480.0,0.00023561,3]
[380570526,1755809452189,-480.0,0.00023835,3]
[380570528,1755809452198,-480.0,0.00024109,3]
[380570530,1755809452207,-480.0,0.00024383,3]
[380570532,1755809452216,-280.937925,0.00024657,7]
[380570534,1755809452225,-280.937925,0.00024657,7]
[380570536,1755809452236,-480.0,0.00024657,3]
[380570538,1755809452245,-6124.01509312,0.000249,2]
[380570540,1755809452256,-1797.2499998,0.000249,2]
[380571047,1755809458144,5000.0,0.00019111,2]
[380572605,1755809474554,5000.0,0.00019111,2]
[380572791,1755809477054,168.451171,0.00018603,2]
[380572824,1755809477376,176.3575209,0.00018868,2]
[380573977,1755809490883,4352.73567078,0.00019111,2]
[380573980,1755809490906,647.26432922,0.00019111,2]
[380575402,1755809506689,5000.0,0.00019111,2]
[380577069,1755809524318,5000.0,0.00019111,2]
[380578595,1755809540264,5000.0,0.00019111,2]
[380579995,1755809557116,4352.73567078,0.00019111,2]
[380579996,1755809557139,647.26432922,0.00019111,2]
[380580542,1755809573120,5000.0,0.00019111,2]
[380580543,1755809588338,5000.0,0.00019111,2]
[380580544,1755809604253,5000.0,0.00019111,2]
[380580545,1755809621518,4352.73567078,0.00019111,2]
[380580546,1755809621540,647.26432922,0.00019111,2]
[380580547,1755809636687,5000.0,0.00019111,2]
[380580548,1755809652366,5000.0,0.00019111,2]
[380580549,1755809668117,5000.0,0.00019111,2]
[380580550,1755809684326,4352.73567078,0.00019111,2]
[380580551,1755809684348,647.26432922,0.00019111,2]
[380580552,1755809699519,5000.0,0.00019111,2]
[380580553,1755809715946,5000.0,0.00019111,2]
[380580554,1755809731743,5000.0,0.00019111,2]
[380580555,1755809747399,4352.73567078,0.00019111,2]
[380580556,1755809747423,647.26432922,0.00019111,2]
[380580557,1755809764639,5000.0,0.00019111,2]
[380580558,1755809780421,5000.0,0.00019111,2]
[380580560,1755809796145,5000.0,0.00019111,2]
[380580561,1755809812025,4352.73567078,0.00019111,2]
[380580562,1755809812051,647.26432922,0.00019111,2]
[380580563,1755809827991,5000.0,0.00019111,2]
[380580564,1755809843641,5000.0,0.00019111,2]
[380580565,1755809859315,5000.0,0.00019111,2]
[380580566,1755809874456,4352.73567078,0.00019111,2]
[380580567,1755809874480,647.26432922,0.00019111,2]
[380580568,1755809890848,5000.0,0.00019111,2]
[380580569,1755809906914,5000.0,0.00019111,2]
[380580570,1755809922680,5000.0,0.00019111,2]
[380580571,1755809938156,4352.73567078,0.00019111,2]
[380580572,1755809938184,647.26432922,0.00019111,2]
[380580573,1755809954067,5000.0,0.00019111,2]
[380580574,1755809970141,5000.0,0.00019111,2]
[380580575,1755809985878,5000.0,0.00019111,2]
[380580576,1755810002190,3909.26403961,0.00019111,2]
[380580578,1755810263692,443.47163117,0.00019111,2]
[380580579,1755810263715,56.52836883,0.00019111,2]
[380580580,1755810268217,500.0,0.00019111,2]
[380580581,1755810452139,-1200.0,0.00019177,2]
[380580582,1755810452160,-300.0,0.00019177,2]
[380580583,1755810452183,-480.0,0.00019178,2]
[380580584,1755810452208,-480.0,0.00019178,2]
[380580585,1755810452233,-480.0,0.00019178,2]
[380580586,1755810452256,-480.0,0.00019178,2]
[380580587,1755810452277,-480.0,0.00019178,2]
[380580588,1755810452299,-480.0,0.00019178,2]
[380580589,1755810452321,-480.0,0.00019178,2]
[380580590,1755810452343,-480.0,0.00019178,2]
[380580591,1755810452365,-480.0,0.00019178,2]
[380580592,1755810452387,-480.0,0.00019178,2]
[380580593,1755810452408,-480.0,0.00019178,2]
[380580594,1755810452429,-480.0,0.00019178,2]
[380580595,1755810452451,-315.11,0.00019178,2]
[380580596,1755810452472,-480.0,0.00019178,2]
[380580597,1755810452494,-480.0,0.00019178,2]
[380580598,1755810452516,-480.0,0.00019178,2]
[380580599,1755810452538,-154.72,0.00019178,2]
[380580600,1755810452559,-480.0,0.00019178,2]
[380580601,1755810452583,-480.0,0.00019178,2]
[380580602,1755810452604,-480.0,0.00019178,2]
[380580603,1755810452628,-1055.6,0.00019178,2]
[380580604,1755810452651,-480.0,0.00019178,2]
[380580605,1755810452673,-480.0,0.00019178,2]
[380580606,1755810452694,-529.3,0.00019178,2]
[380580607,1755810452716,-480.0,0.00019178,2]
[380580608,1755810452739,-480.0,0.00019178,2]
[380580609,1755810452762,-480.0,0.00019178,2]
[380580610,1755810452784,-480.0,0.00019178,2]
[380580611,1755810452806,-562.03,0.00019178,2]
[380580612,1755810452828,-480.0,0.00019178,2]
[380580613,1755810452851,-164.08813911,0.00019178,2]
[380580614,1755810452874,-480.0,0.00019178,2]
[380580615,1755810452895,-480.0,0.00019178,2]
[380580616,1755810452917,-480.0,0.00019178,2]
[380580617,1755810452939,-480.0,0.00019178,2]
[380580618,1755810452961,-480.0,0.00019178,2]
[380580619,1755810452983,-480.0,0.00019178,2]
[380580620,1755810453005,-440.08,0.00019178,2]
[380580621,1755810453027,-480.0,0.00019178,2]
[380580622,1755810453054,-480.0,0.00019178,2]
[380580623,1755810453077,-480.0,0.00019178,2]
[380580624,1755810453100,-480.0,0.00019178,2]
[380580625,1755810453125,-964.9,0.00019178,2]
[380580626,1755810453152,-480.0,0.00019178,2]
[380580627,1755810453185,-480.0,0.00019178,2]
[380580628,1755810453207,-480.0,0.00019178,2]
[380580629,1755810453229,-480.0,0.00019178,2]
[380580630,1755810453252,-480.0,0.00019178,2]
[380580631,1755810453276,-480.0,0.00019178,2]
[380580632,1755810453502,-548.33,0.00019178,2]
[380580633,1755810453527,-480.0,0.00019178,2]
[380580634,1755810453550,-480.0,0.00019178,2]
[380580635,1755810453570,-480.0,0.00019178,2]
[380580636,1755810453594,-480.0,0.00019178,2]
[380580637,1755810453615,-1738.98,0.00019178,2]
[380580638,1755810453641,-533.55,0.00019178,2]
[380580639,1755810453661,-480.0,0.00019178,2]
[380580640,1755810453682,-480.0,0.00019178,2]
[380580641,1755810453702,-480.0,0.00019178,2]
[380580642,1755810453722,-5000.0,0.00019178,2]
[380580643,1755810453742,-480.0,0.00019447,2]
[380580644,1755810453762,-440.02054733,0.00019447,2]
[380580645,1755810453782,-480.0,0.00019447,2]
[380580646,1755810453802,-480.0,0.00019447,2]
[380580647,1755810453821,-396.34431296,0.00019447,2]
[380580648,1755810453841,-480.0,0.00019447,2]
[380580649,1755810453860,-457.493584,0.00019448,2]
[380580650,1755810453881,-316.96944826,0.0001945,2]
[380580651,1755810453900,-480.0,0.0001945,2]
[380580652,1755810453920,-480.0,0.0001945,2]
[380580653,1755810453941,-1376.24,0.00019451,2]
[380580654,1755810453961,-480.0,0.00019451,2]
[380580655,1755810453982,-687.77,0.00019451,2]
[380580656,1755810454003,-813.26,0.00019451,2]
[380580657,1755810454022,-480.0,0.00019451,2]
[380580658,1755810454043,-480.0,0.00019451,2]
[380580659,1755810454064,-480.0,0.00019451,2]
[380580660,1755810454084,-977.66,0.00019451,2]
[380580661,1755810454105,-532.02,0.00019451,2]
[380580662,1755810454128,-480.0,0.00019452,2]
[380580663,1755810454148,-269.55,0.00019452,2]
[380580664,1755810454169,-480.0,0.00019452,2]
[380580665,1755810454189,-480.0,0.00019452,2]
[380580666,1755810454210,-480.0,0.00019452,2]
[380580667,1755810454230,-480.0,0.00019452,2]
[380580668,1755810454251,-480.0,0.00019452,2]
[380580669,1755810454271,-480.0,0.00019452,2]
[380580670,1755810454292,-613.05836614,0.00019452,2]
[380580671,1755810454312,-480.0,0.00019452,2]
[380580672,1755810454335,-480.0,0.00019452,2]
[380580673,1755810454356,-480.0,0.00019452,2]
[380580674,1755810454378,-480.0,0.00019452,2]
[380580675,1755810454400,-1055.6,0.00019452,2]
[380580676,1755810454420,-480.0,0.00019452,2]
[380580677,1755810454441,-480.0,0.00019452,2]
[380580678,1755810454461,-529.3,0.00019452,2]
[380580679,1755810454481,-480.0,0.00019452,2]
[380580680,1755810454502,-480.0,0.00019452,2]
[380580681,1755810454524,-480.0,0.00019452,2]
[380580682,1755810454551,-562.03,0.00019452,2]
[380580683,1755810454573,-480.0,0.00019452,2]
[380580684,1755810454597,-480.0,0.00019452,2]
[380580685,1755810454621,-480.0,0.00019452,2]
[380580686,1755810454643,-480.0,0.00019452,2]
[380580687,1755810454668,-480.0,0.00019452,2]
[380580689,1755810454688,-480.0,0.00019452,2]
[380580690,1755810454708,-480.0,0.00019452,2]
[380580691,1755810454729,-480.0,0.00019452,2]
[380580692,1755810454751,-964.9,0.00019452,2]
[380580693,1755810454771,-355.15937321,0.00019452,2]
[380580694,1755810454791,-480.0,0.00019452,2]
[380580695,1755810454811,-551.75163119,0.00019452,2]
[380580696,1755810454832,-480.0,0.00019452,2]
[380580697,1755810454852,-480.0,0.00019452,2]
[380580698,1755810454875,-548.33,0.00019452,2]
[380580699,1755810454895,-480.0,0.00019452,2]
[380580700,1755810454918,-1610.86936662,0.00019452,2]
[380580701,1755810455036,-128.11063338,0.00019452,2]
[380580702,1755810455057,-533.55,0.00019452,2]
[380580703,1755810455077,-480.0,0.00019452,2]
[380580704,1755810455099,-480.0,0.00019452,2]
[380580705,1755810455120,-179.67658215,0.00019453,2]
[380580706,1755810455141,-393.14,0.00019721,2]
[380580707,1755810455161,-480.0,0.00019721,2]
[380580708,1755810455181,-480.0,0.00019724,2]
[380580709,1755810455203,-1376.24,0.00019725,2]
[380580710,1755810455223,-480.0,0.00019725,2]
[380580711,1755810455244,-687.77,0.00019725,2]
[380580712,1755810455266,-813.26,0.00019725,2]
[380580713,1755810455286,-480.0,0.00019725,2]
[380580714,1755810455308,-480.0,0.00019725,2]
[380580715,1755810455328,-480.0,0.00019725,2]
[380580716,1755810455349,-977.66,0.00019725,2]
[380580717,1755810455371,-532.02,0.00019725,2]
[380580718,1755810455391,-480.0,0.00019726,2]
[380580719,1755810455412,-283.01,0.00019726,2]
[380580720,1755810455432,-480.0,0.00019726,2]
[380580721,1755810455452,-480.0,0.00019726,2]
[380580722,1755810455472,-480.0,0.00019726,2]
[380580723,1755810455492,-499.98,0.00019726,2]
[380580724,1755810455513,-287.41349519,0.00019726,2]
[380580725,1755810455537,-480.0,0.00019726,2]
[380580726,1755810455559,-480.0,0.00019726,2]
[380580727,1755810455584,-1055.6,0.00019726,2]
[380580728,1755810455604,-480.0,0.00019726,2]
[380580729,1755810455627,-480.0,0.00019726,2]
[380580730,1755810455648,-529.3,0.00019726,2]
[380580731,1755810455673,-191.42,0.00019726,2]
[380580732,1755810455694,-480.0,0.00019726,2]
[380580733,1755810455713,-480.0,0.00019726,2]
[380580734,1755810455732,-562.03,0.00019726,2]
[380580735,1755810455752,-480.0,0.00019726,2]
[380580736,1755810455772,-480.0,0.00019726,2]
[380580737,1755810455792,-480.0,0.00019726,2]
[380580738,1755810455811,-480.0,0.00019726,2]
[380580739,1755810455830,-480.0,0.00019726,2]
[380580740,1755810455849,-480.0,0.00019726,2]
[380580741,1755810455868,-480.0,0.00019726,2]
[380580742,1755810455889,-964.9,0.00019726,2]
[380580743,1755810455908,-480.0,0.00019726,2]
[380580744,1755810455926,-480.0,0.00019726,2]
[380580745,1755810455946,-548.33,0.00019726,2]
[380580746,1755810455966,-480.0,0.00019726,2]
[380580747,1755810455986,-480.0,0.00019726,2]
[380580748,1755810456006,-1738.98,0.00019726,2]
[380580749,1755810456026,-533.55,0.00019726,2]
[380580750,1755810456045,-480.0,0.00019726,2]
[380580751,1755810456065,-480.0,0.00019726,2]
[380580752,1755810456084,-500.0,0.0001986,2]
[380580753,1755810456103,-500.0,0.00019873,2]
[380580754,1755810456126,-480.0,0.00019899,2]
[380580755,1755810456146,-480.0,0.00019899,2]
[380580756,1755810456166,-480.0,0.00019899,2]
[380580757,1755810456186,-480.0,0.00019899,2]
[380580758,1755810456206,-480.0,0.00019899,2]
[380580759,1755810456226,-480.0,0.00019899,2]
[380580760,1755810456248,-480.0,0.00019899,2]
[380580761,1755810456268,-480.0,0.00019899,2]
[380580762,1755810456289,-480.0,0.00019899,2]
[380580763,1755810456309,-480.0,0.00019899,2]
[380580764,1755810456329,-480.0,0.00019899,2]
[380580765,1755810456348,-480.0,0.00019899,2]
[380580766,1755810456368,-480.0,0.00019899,2]
[380580767,1755810456390,-480.0,0.00019899,2]
[380580768,1755810456411,-480.0,0.00019899,2]
[380580769,1755810456431,-480.0,0.00019899,2]
[380580770,1755810456450,-480.0,0.00019899,2]
[380580771,1755810456469,-480.0,0.00019899,2]
[380580772,1755810456490,-480.0,0.00019899,2]
[380580773,1755810456510,-480.0,0.00019899,2]
[380580774,1755810456531,-13208.20460159,0.000199,2]
[380580775,1755810456553,-7068.64134828,0.000199,2]
[380580776,1755810456576,-480.0,0.00019995,2]
[380580777,1755810456599,-1376.24,0.00019999,2]
[380580778,1755810456621,-480.0,0.00019999,2]
[380580779,1755810456641,-687.77,0.00019999,2]
[380580780,1755810456760,-813.26,0.00019999,2]
[380580781,1755810456804,-480.0,0.00019999,2]
[380580782,1755810456830,-163.40021761,0.00019999,2]
[380580784,1755810566088,-480.0,0.00019178,2]
[380580785,1755810566110,-1344.94,0.00019178,2]
[380580786,1755810566130,-661.63,0.00019178,2]
[380580787,1755810566151,-97.468226,0.00019178,2]
[380580799,1755810635653,-1200.0,0.00019177,2]
[380580800,1755810635663,-471.451774,0.00019178,2]
[380580801,1755810635671,-480.0,0.00019178,2]
[380580802,1755810635680,-480.0,0.00019178,2]
[380580803,1755810635690,-480.0,0.00019178,2]
[380580804,1755810635700,-480.0,0.00019178,2]
[380580805,1755810635709,-480.0,0.00019178,2]
[380580806,1755810635719,-480.0,0.00019178,2]
[380580807,1755810635728,-480.0,0.00019178,2]
[380580808,1755810635737,-772.79,0.00019178,2]
[380580809,1755810635746,-837.09,0.00019178,2]
[380580810,1755810635755,-480.0,0.00019178,2]
[380580811,1755810635765,-480.0,0.00019178,2]
[380580812,1755810635774,-480.0,0.00019178,2]
[380580813,1755810635783,-480.0,0.00019178,2]
[380580815,1755810635792,-844.29,0.00019178,2]
[380580816,1755810635801,-480.0,0.00019178,2]
[380580817,1755810635811,-480.0,0.00019178,2]
[380580818,1755810635820,-480.0,0.00019178,2]
[380580819,1755810635829,-480.0,0.00019178,2]
[380580820,1755810635838,-480.0,0.00019178,2]
[380580821,1755810635847,-480.0,0.00019178,2]
[380580822,1755810635857,-480.0,0.00019178,2]
[380580823,1755810635866,-480.0,0.00019178,2]
[380580824,1755810635876,-480.0,0.00019178,2]
[380580825,1755810635885,-480.0,0.00019178,2]
[380580826,1755810635895,-122.90938047,0.00019178,2]
[380581130,1755810639222,-1714.87061953,0.00019178,2]
[380581132,1755810639232,-480.0,0.00019178,2]
[380581134,1755810639241,-480.0,0.00019178,2]
[380581136,1755810639250,-480.0,0.00019178,2]
[380581138,1755810639259,-480.0,0.00019178,2]
[380581140,1755810639268,-480.0,0.00019178,2]
[380581142,1755810639277,-644.29,0.00019178,2]
[380581144,1755810639286,-688.12,0.0001945,2]
[380581146,1755810639295,-480.0,0.0001945,2]
[380581148,1755810639304,-1118.23,0.0001945,2]
[380581150,1755810639315,-480.0,0.0001945,2]
[380581152,1755810639324,-12.82435478,0.00019452,2]
[380581154,1755810639335,-467.17564522,0.00019452,2]
[380581156,1755810639344,-496.79102985,0.00019452,2]
[380581158,1755810639355,-460.93743129,0.00019452,2]
[380581161,1755810639366,-387.21153886,0.00019452,2]
[380581163,1755810639376,-661.63,0.00019452,2]
[380581165,1755810639385,-568.92,0.00019452,2]
[380581166,1755810639394,-480.0,0.00019452,2]
[380581168,1755810639404,-591.95,0.00019452,2]
[380581170,1755810639413,-480.0,0.00019452,2]
[380581172,1755810639423,-317.76877687,0.00019452,2]
[380581174,1755810639431,-480.0,0.00019452,2]
[380581176,1755810639441,-570.6679802,0.00019452,2]
[380581178,1755810639450,-480.0,0.00019452,2]
[380581180,1755810639459,-772.79,0.00019452,2]
[380581182,1755810639469,-0.14656436,0.00019452,2]
[380581185,1755810639480,-836.94343564,0.00019452,2]
[380581186,1755810639490,-480.0,0.00019452,2]
[380581188,1755810639499,-480.0,0.00019452,2]